[Event "Titled Tuesday Blitz August 3 2021"]
[White "Mirzoev, Azer"]
[Black "Wei, Yi"]
[WhiteFideId "13400304"]
[BlackFideId "8603405"]
[WhiteElo "2525"]
[BlackElo "2686"]
[Result "0-1"]
[Round "09"]
[TimeControl "180+1"]
[Date "2021.08.03"]
[WhiteClock "0:00:02"]
[BlackClock "0:00:05"]

1. d4 {[%clk 0:02:59]}  Nf6 {[%clk 0:03:00]} 2. Nf3 {[%clk 0:02:59]}  d5 {[%clk 0:02:59]} 3. c4 {[%clk 0:02:58]}  e6 {[%clk 0:03:00]} 4. e3 {[%clk 0:02:58]}  b6 {[%clk 0:02:53]} 5. b3 {[%clk 0:02:55]}  Bb7 {[%clk 0:02:53]} 6. Bb2 {[%clk 0:02:56]}  Nbd7 {[%clk 0:02:54]} 7. Nbd2 {[%clk 0:02:56]}  Bd6 {[%clk 0:02:54]} 8. Bd3 {[%clk 0:02:52]}  O-O {[%clk 0:02:54]} 9. O-O {[%clk 0:02:52]}  Qe7 {[%clk 0:02:51]} 10. h3 {[%clk 0:02:50]}  Rfd8 {[%clk 0:02:48]} 11. Qe2 {[%clk 0:02:48]}  c5 {[%clk 0:02:47]} 12. cxd5 {[%clk 0:02:48]}  Nxd5 {[%clk 0:02:42]} 13. Ba6 {[%clk 0:02:46]}  N7f6 {[%clk 0:02:35]} 14. Bxb7 {[%clk 0:02:45]}  Qxb7 {[%clk 0:02:35]} 15. Nc4 {[%clk 0:02:43]}  Be7 {[%clk 0:02:24]} 16. Rfd1 {[%clk 0:02:42]}  Rac8 {[%clk 0:02:23]} 17. Rac1 {[%clk 0:02:40]}  b5 {[%clk 0:02:15]} 18. Nce5 {[%clk 0:02:39]}  a6 {[%clk 0:02:16]} 19. dxc5 {[%clk 0:02:37]}  Bxc5 {[%clk 0:02:12]} 20. Nd4 {[%clk 0:02:28]}  Bxd4 {[%clk 0:01:57]} 21. Bxd4 {[%clk 0:02:28]}  h6 {[%clk 0:01:56]} 22. Qb2 {[%clk 0:02:19]}  Ne4 {[%clk 0:01:51]} 23. Rxc8 {[%clk 0:02:16]}  Rxc8 {[%clk 0:01:49]} 24. Nf3 {[%clk 0:01:49]}  f6 {[%clk 0:01:44]} 25. Rc1 {[%clk 0:00:54]}  e5 {[%clk 0:01:35]} 26. Rxc8+ {[%clk 0:00:53]}  Qxc8 {[%clk 0:01:35]} 27. Qb1 {[%clk 0:00:53]}  Nec3 {[%clk 0:00:43]} 28. Bxc3 {[%clk 0:00:53]}  Nxc3 {[%clk 0:00:43]} 29. Qc2 {[%clk 0:00:52]}  b4 {[%clk 0:00:43]} 30. Nh4 {[%clk 0:00:48]}  Qd7 {[%clk 0:00:36]} 31. Nf5 {[%clk 0:00:38]}  Kf7 {[%clk 0:00:30]} 32. a4 {[%clk 0:00:13]}  bxa3 {[%clk 0:00:16]} 33. Nxh6+ {[%clk 0:00:08]}  gxh6 {[%clk 0:00:15]} 34. Qxc3 {[%clk 0:00:08]}  a2 {[%clk 0:00:09]} 35. Kh2 {[%clk 0:00:08]}  Qd5 {[%clk 0:00:05]} 36. Qc7+ {[%clk 0:00:06]}  Kg8 {[%clk 0:00:04]} 37. Qc8+ {[%clk 0:00:06]}  Kg7 {[%clk 0:00:04]} 38. Qxa6 {[%clk 0:00:07]}  Qxb3 {[%clk 0:00:03]} 39. Qa7+ {[%clk 0:00:06]}  Kg6 {[%clk 0:00:03]} 40. g4 {[%clk 0:00:06]}  Qb1 {[%clk 0:00:03]} 41. Qa8 {[%clk 0:00:05]}  Kf7 {[%clk 0:00:03]} 42. Qa7+ {[%clk 0:00:05]}  Ke6 {[%clk 0:00:03]} 43. Qa6+ {[%clk 0:00:05]}  Kd5 {[%clk 0:00:04]} 44. Qa5+ {[%clk 0:00:05]}  Kc4 {[%clk 0:00:04]} 45. Qa6+ {[%clk 0:00:05]}  Kc3 {[%clk 0:00:05]} 46. Qa5+ {[%clk 0:00:05]}  Kc2 {[%clk 0:00:05]} 47. Qa4+ {[%clk 0:00:05]}  Kd2 {[%clk 0:00:05]} 48. Qa5+ {[%clk 0:00:05]}  Ke2 {[%clk 0:00:05]} 49. Kg3 {[%clk 0:00:04]}  Qg1+ {[%clk 0:00:05]} 50. Kh4 {[%clk 0:00:04]}  a1=Q {[%clk 0:00:05]} 51. Qb5+ {[%clk 0:00:04]}  Kxf2 {[%clk 0:00:05]} 52. Qc6 {[%clk 0:00:03]}  Qg3+ {[%clk 0:00:05]} 53. Kh5 {[%clk 0:00:03]}  Qxh3+ {[%clk 0:00:05]} 54. Kg6 {[%clk 0:00:04]}  Qxg4+ {[%clk 0:00:06]} 55. Kf7 {[%clk 0:00:03]}  Qh5+ {[%clk 0:00:05]} 56. Kxf6 {[%clk 0:00:03]}  Qg5+ {[%clk 0:00:05]} 57. Kf7 {[%clk 0:00:02]}  Qa2+ {[%clk 0:00:05]} 0-1


[Site "https://www.chess.com"]

[Event "Titled Tuesday Blitz August 3 2021"]
[White "Mitusov, Semen"]
[Black "Nguyen Hong Nhung"]
[WhiteFideId "14151049"]
[BlackFideId "12412201"]
[WhiteElo "2256"]
[BlackElo "1661"]
[Result "1-0"]
[Round "09"]
[TimeControl "180+1"]
[Date "2021.08.03"]
[WhiteClock "0:00:45"]
[BlackClock "0:00:03"]

1. e4 {[%clk 0:03:00]}  c5 {[%clk 0:03:00]} 2. Nc3 {[%clk 0:02:57]}  e6 {[%clk 0:03:00]} 3. g3 {[%clk 0:02:54]}  d5 {[%clk 0:03:00]} 4. exd5 {[%clk 0:02:51]}  exd5 {[%clk 0:03:00]} 5. d4 {[%clk 0:02:51]}  Nf6 {[%clk 0:02:58]} 6. Bg2 {[%clk 0:02:46]}  cxd4 {[%clk 0:02:51]} 7. Qxd4 {[%clk 0:02:39]}  Nc6 {[%clk 0:02:51]} 8. Qd1 {[%clk 0:02:32]}  Bb4 {[%clk 0:02:44]} 9. Ne2 {[%clk 0:02:28]}  d4 {[%clk 0:02:14]} 10. a3 {[%clk 0:02:17]}  Ba5 {[%clk 0:02:09]} 11. Bxc6+ {[%clk 0:02:12]}  bxc6 {[%clk 0:02:09]} 12. Qxd4 {[%clk 0:02:12]}  O-O {[%clk 0:02:01]} 13. Qxd8 {[%clk 0:02:09]}  Rxd8 {[%clk 0:02:02]} 14. O-O {[%clk 0:02:08]}  Ba6 {[%clk 0:02:02]} 15. Re1 {[%clk 0:02:03]}  Nd5 {[%clk 0:01:33]} 16. b4 {[%clk 0:02:00]}  Bb6 {[%clk 0:01:33]} 17. Nxd5 {[%clk 0:01:56]}  cxd5 {[%clk 0:01:33]} 18. Be3 {[%clk 0:01:52]}  d4 {[%clk 0:01:28]} 19. Bf4 {[%clk 0:01:49]}  Rac8 {[%clk 0:01:25]} 20. Rad1 {[%clk 0:01:45]}  h6 {[%clk 0:00:58]} 21. Rd2 {[%clk 0:01:41]}  g5 {[%clk 0:00:43]} 22. Be5 {[%clk 0:01:38]}  d3 {[%clk 0:00:21]} 23. cxd3 {[%clk 0:01:36]}  Rxd3 {[%clk 0:00:21]} 24. Rxd3 {[%clk 0:01:29]}  Bxd3 {[%clk 0:00:22]} 25. Nd4 {[%clk 0:01:29]}  Re8 {[%clk 0:00:22]} 26. Nb3 {[%clk 0:01:26]}  f6 {[%clk 0:00:21]} 27. Bc3 {[%clk 0:01:27]}  Rxe1+ {[%clk 0:00:20]} 28. Bxe1 {[%clk 0:01:27]}  Kf7 {[%clk 0:00:20]} 29. Bc3 {[%clk 0:01:27]}  Ke6 {[%clk 0:00:20]} 30. Kg2 {[%clk 0:01:23]}  Be4+ {[%clk 0:00:20]} 31. f3 {[%clk 0:01:23]}  Bd5 {[%clk 0:00:21]} 32. Nc1 {[%clk 0:01:21]}  f5 {[%clk 0:00:20]} 33. Nd3 {[%clk 0:01:21]}  Kd6 {[%clk 0:00:19]} 34. Ne5 {[%clk 0:01:20]}  Kc7 {[%clk 0:00:16]} 35. Kf1 {[%clk 0:01:18]}  Kb7 {[%clk 0:00:14]} 36. Ke2 {[%clk 0:01:18]}  Bc7 {[%clk 0:00:14]} 37. Ng6 {[%clk 0:01:14]}  h5 {[%clk 0:00:13]} 38. Bf6 {[%clk 0:01:12]}  h4 {[%clk 0:00:12]} 39. gxh4 {[%clk 0:01:09]}  gxh4 {[%clk 0:00:13]} 40. Be5 {[%clk 0:01:06]}  Bd8 {[%clk 0:00:11]} 41. Ke3 {[%clk 0:01:02]}  Kc6 {[%clk 0:00:10]} 42. f4 {[%clk 0:01:00]}  a5 {[%clk 0:00:09]} 43. Bc3 {[%clk 0:00:58]}  axb4 {[%clk 0:00:09]} 44. Bxb4 {[%clk 0:00:58]}  Kb5 {[%clk 0:00:09]} 45. Kd4 {[%clk 0:00:57]}  Be4 {[%clk 0:00:09]} 46. Ke5 {[%clk 0:00:54]}  Bc7+ {[%clk 0:00:08]} 47. Bd6 {[%clk 0:00:53]}  Bd8 {[%clk 0:00:09]} 48. Be7 {[%clk 0:00:52]}  Bc7+ {[%clk 0:00:08]} 49. Bd6 {[%clk 0:00:49]}  Bb6 {[%clk 0:00:07]} 50. Nxh4 {[%clk 0:00:47]}  Bg1 {[%clk 0:00:07]} 51. h3 {[%clk 0:00:47]}  Bh2 {[%clk 0:00:05]} 52. Nxf5 {[%clk 0:00:47]}  Bg2 {[%clk 0:00:03]} 53. h4 {[%clk 0:00:46]}  Kc6 {[%clk 0:00:02]} 54. h5 {[%clk 0:00:47]}  Bd5 {[%clk 0:00:01]} 55. Ne7+ {[%clk 0:00:45]}  Kd7 {[%clk 0:00:01]} 56. Nxd5 {[%clk 0:00:46]}  Bg1 {[%clk 0:00:02]} 57. h6 {[%clk 0:00:46]}  Bf2 {[%clk 0:00:02]} 58. Nf6+ {[%clk 0:00:46]}  Kc6 {[%clk 0:00:02]} 59. h7 {[%clk 0:00:47]}  Bb6 {[%clk 0:00:01]} 60. h8=Q {[%clk 0:00:46]}  Ba5 {[%clk 0:00:02]} 61. Qc8+ {[%clk 0:00:46]}  Kb5 {[%clk 0:00:03]} 62. Qc5+ {[%clk 0:00:45]}  Ka4 {[%clk 0:00:04]} 63. Qc4+ {[%clk 0:00:44]}  Bb4 {[%clk 0:00:03]} 64. Qxb4# {[%clk 0:00:45]} 1-0


[Site "https://www.chess.com"]

[Event "Titled Tuesday Blitz August 3 2021"]
[White "Moon_stone123"]
[Black "Nefedov, Sergey"]
[BlackFideId "24113417"]
[WhiteElo "2422"]
[BlackElo "2385"]
[Result "1-0"]
[Round "09"]
[TimeControl "180+1"]
[Date "2021.08.03"]
[WhiteClock "0:00:10"]
[BlackClock "0:00:01"]

1. Nf3 {[%clk 0:02:59]}  Nf6 {[%clk 0:02:58]} 2. g3 {[%clk 0:02:59]}  g6 {[%clk 0:02:58]} 3. Bg2 {[%clk 0:03:00]}  Bg7 {[%clk 0:02:58]} 4. O-O {[%clk 0:03:00]}  O-O {[%clk 0:02:58]} 5. c4 {[%clk 0:03:00]}  d6 {[%clk 0:02:55]} 6. Nc3 {[%clk 0:03:01]}  e5 {[%clk 0:02:48]} 7. d3 {[%clk 0:03:01]}  Nc6 {[%clk 0:02:47]} 8. Rb1 {[%clk 0:03:01]}  a5 {[%clk 0:02:47]} 9. a3 {[%clk 0:03:01]}  Bf5 {[%clk 0:02:43]} 10. e4 {[%clk 0:02:54]}  Bg4 {[%clk 0:02:41]} 11. h3 {[%clk 0:02:51]}  Bxf3 {[%clk 0:02:41]} 12. Bxf3 {[%clk 0:02:52]}  Nd4 {[%clk 0:02:40]} 13. Bg2 {[%clk 0:02:51]}  Nd7 {[%clk 0:02:38]} 14. Ne2 {[%clk 0:02:44]}  Nxe2+ {[%clk 0:02:30]} 15. Qxe2 {[%clk 0:02:45]}  a4 {[%clk 0:02:30]} 16. f4 {[%clk 0:02:39]}  exf4 {[%clk 0:02:09]} 17. gxf4 {[%clk 0:02:37]}  Bd4+ {[%clk 0:01:58]} 18. Kh1 {[%clk 0:02:37]}  Qh4 {[%clk 0:01:41]} 19. Be3 {[%clk 0:02:24]}  Bxe3 {[%clk 0:01:41]} 20. Qxe3 {[%clk 0:02:25]}  Nf6 {[%clk 0:01:07]} 21. d4 {[%clk 0:02:19]}  Rae8 {[%clk 0:01:03]} 22. e5 {[%clk 0:02:18]}  Nh5 {[%clk 0:01:03]} 23. Kh2 {[%clk 0:02:15]}  c5 {[%clk 0:00:59]} 24. d5 {[%clk 0:02:00]}  dxe5 {[%clk 0:00:50]} 25. fxe5 {[%clk 0:01:58]}  Qxc4 {[%clk 0:00:51]} 26. Rbe1 {[%clk 0:01:48]}  Qd4 {[%clk 0:00:30]} 27. d6 {[%clk 0:01:45]}  Ng7 {[%clk 0:00:25]} 28. Qxd4 {[%clk 0:01:40]}  cxd4 {[%clk 0:00:25]} 29. Bxb7 {[%clk 0:01:41]}  Rb8 {[%clk 0:00:24]} 30. Bc6 {[%clk 0:01:35]}  Rxb2+ {[%clk 0:00:25]} 31. Kg1 {[%clk 0:01:25]}  Nf5 {[%clk 0:00:17]} 32. Rb1 {[%clk 0:01:22]}  Rxb1 {[%clk 0:00:12]} 33. Rxb1 {[%clk 0:01:22]}  f6 {[%clk 0:00:12]} 34. e6 {[%clk 0:00:32]}  Nxd6 {[%clk 0:00:11]} 35. e7 {[%clk 0:00:32]}  Rc8 {[%clk 0:00:08]} 36. Bd7 {[%clk 0:00:31]}  Ra8 {[%clk 0:00:08]} 37. Rb6 {[%clk 0:00:25]}  Ne8 {[%clk 0:00:07]} 38. Be6+ {[%clk 0:00:22]}  Kg7 {[%clk 0:00:07]} 39. Rb4 {[%clk 0:00:23]}  f5 {[%clk 0:00:07]} 40. Rxd4 {[%clk 0:00:20]}  Ra7 {[%clk 0:00:05]} 41. Bd7 {[%clk 0:00:16]}  Kf7 {[%clk 0:00:04]} 42. Bxa4 {[%clk 0:00:11]}  Rxe7 {[%clk 0:00:04]} 43. Bb3+ {[%clk 0:00:10]}  Kf6 {[%clk 0:00:03]} 44. a4 {[%clk 0:00:10]}  Re3 {[%clk 0:00:02]} 45. Rb4 {[%clk 0:00:09]}  Rxh3 {[%clk 0:00:01]} 46. a5 {[%clk 0:00:10]} 1-0


[Site "https://www.chess.com"]

[Event "Titled Tuesday Blitz August 3 2021"]
[White "Murzin, Volodar"]
[Black "Begunov, Konstantin"]
[WhiteFideId "44155573"]
[BlackFideId "4118510"]
[WhiteElo "2541"]
[BlackElo "2262"]
[Result "1-0"]
[Round "09"]
[TimeControl "180+1"]
[Date "2021.08.03"]
[WhiteClock "0:00:10"]
[BlackClock "0:00:25"]

1. e4 {[%clk 0:03:00]}  c5 {[%clk 0:02:59]} 2. Nf3 {[%clk 0:02:58]}  d6 {[%clk 0:02:59]} 3. d4 {[%clk 0:02:57]}  cxd4 {[%clk 0:03:00]} 4. Qxd4 {[%clk 0:02:57]}  Nf6 {[%clk 0:02:59]} 5. Be2 {[%clk 0:02:56]}  Nc6 {[%clk 0:02:59]} 6. Qe3 {[%clk 0:02:57]}  Bg4 {[%clk 0:02:58]} 7. O-O {[%clk 0:02:56]}  e6 {[%clk 0:02:58]} 8. Rd1 {[%clk 0:02:54]}  Qc7 {[%clk 0:02:57]} 9. c4 {[%clk 0:02:53]}  Bxf3 {[%clk 0:02:49]} 10. Qxf3 {[%clk 0:02:45]}  Ne5 {[%clk 0:02:45]} 11. Qe3 {[%clk 0:02:32]}  Nxc4 {[%clk 0:02:37]} 12. Qd4 {[%clk 0:02:20]}  Ne5 {[%clk 0:02:01]} 13. Nc3 {[%clk 0:02:16]}  a6 {[%clk 0:01:56]} 14. Qa4+ {[%clk 0:02:08]}  Nfd7 {[%clk 0:01:44]} 15. Bf4 {[%clk 0:01:51]}  Qc6 {[%clk 0:01:29]} 16. Bb5 {[%clk 0:01:46]}  Qc8 {[%clk 0:01:22]} 17. Bxd7+ {[%clk 0:01:23]}  Qxd7 {[%clk 0:01:18]} 18. Bxe5 {[%clk 0:01:11]}  Qxa4 {[%clk 0:01:02]} 19. Nxa4 {[%clk 0:01:12]}  dxe5 {[%clk 0:01:03]} 20. Nb6 {[%clk 0:01:13]}  Rb8 {[%clk 0:00:46]} 21. Rac1 {[%clk 0:01:09]}  Bb4 {[%clk 0:00:35]} 22. Kf1 {[%clk 0:00:41]}  Ba5 {[%clk 0:00:25]} 23. Nd7 {[%clk 0:00:35]}  Rd8 {[%clk 0:00:24]} 24. Nxe5 {[%clk 0:00:21]}  Ke7 {[%clk 0:00:19]} 25. Nc4 {[%clk 0:00:10]}  Bc7 {[%clk 0:00:18]} 26. Ke2 {[%clk 0:00:07]}  Rxd1 {[%clk 0:00:17]} 27. Rxd1 {[%clk 0:00:07]}  Rd8 {[%clk 0:00:18]} 28. Rxd8 {[%clk 0:00:03]}  Kxd8 {[%clk 0:00:19]} 29. g3 {[%clk 0:00:04]}  b5 {[%clk 0:00:19]} 30. Ne3 {[%clk 0:00:04]}  Kd7 {[%clk 0:00:19]} 31. Kd3 {[%clk 0:00:03]}  Kc6 {[%clk 0:00:20]} 32. f4 {[%clk 0:00:04]}  g6 {[%clk 0:00:20]} 33. e5 {[%clk 0:00:03]}  Bb6 {[%clk 0:00:20]} 34. Ng4 {[%clk 0:00:04]}  Bd8 {[%clk 0:00:18]} 35. h4 {[%clk 0:00:03]}  h5 {[%clk 0:00:18]} 36. Nf2 {[%clk 0:00:03]}  Bb6 {[%clk 0:00:18]} 37. Ne4 {[%clk 0:00:03]}  Bc7 {[%clk 0:00:18]} 38. Ng5 {[%clk 0:00:03]}  Bb6 {[%clk 0:00:16]} 39. Ke2 {[%clk 0:00:03]}  Bf2 {[%clk 0:00:17]} 40. Kxf2 {[%clk 0:00:03]}  Kd5 {[%clk 0:00:17]} 41. Ke3 {[%clk 0:00:03]}  Kc4 {[%clk 0:00:17]} 42. Nxf7 {[%clk 0:00:04]}  b4 {[%clk 0:00:18]} 43. Nd6+ {[%clk 0:00:05]}  Kc5 {[%clk 0:00:17]} 44. Kd3 {[%clk 0:00:06]}  a5 {[%clk 0:00:17]} 45. Ne4+ {[%clk 0:00:06]}  Kb5 {[%clk 0:00:17]} 46. b3 {[%clk 0:00:07]}  a4 {[%clk 0:00:18]} 47. Nf6 {[%clk 0:00:07]}  a3 {[%clk 0:00:18]} 48. Ne4 {[%clk 0:00:07]}  Kc6 {[%clk 0:00:18]} 49. Kc4 {[%clk 0:00:07]}  g5 {[%clk 0:00:18]} 50. Nxg5 {[%clk 0:00:07]}  Kd7 {[%clk 0:00:18]} 51. Kxb4 {[%clk 0:00:08]}  Ke7 {[%clk 0:00:19]} 52. Kc4 {[%clk 0:00:08]}  Ke8 {[%clk 0:00:20]} 53. b4 {[%clk 0:00:09]}  Ke7 {[%clk 0:00:21]} 54. b5 {[%clk 0:00:10]}  Kd7 {[%clk 0:00:21]} 55. b6 {[%clk 0:00:11]}  Ke7 {[%clk 0:00:22]} 56. b7 {[%clk 0:00:10]}  Kd7 {[%clk 0:00:23]} 57. b8=Q {[%clk 0:00:11]}  Kc6 {[%clk 0:00:23]} 58. Nxe6 {[%clk 0:00:11]}  Kd7 {[%clk 0:00:23]} 59. Qd6+ {[%clk 0:00:11]}  Ke8 {[%clk 0:00:23]} 60. f5 {[%clk 0:00:10]}  Kf7 {[%clk 0:00:24]} 61. Qd7+ {[%clk 0:00:09]}  Kg8 {[%clk 0:00:25]} 62. Qg7# {[%clk 0:00:10]} 1-0


[Site "https://www.chess.com"]

[Event "Titled Tuesday Blitz August 3 2021"]
[White "Najdin, Danil"]
[Black "Melikhov, Evgeny V."]
[WhiteFideId "4172426"]
[BlackFideId "4122046"]
[WhiteElo "2193"]
[BlackElo "1965"]
[Result "1-0"]
[Round "09"]
[TimeControl "180+1"]
[Date "2021.08.03"]
[WhiteClock "0:00:18"]
[BlackClock "0:00:28"]

1. e4 {[%clk 0:03:00]}  e5 {[%clk 0:02:58]} 2. Nf3 {[%clk 0:03:01]}  Nc6 {[%clk 0:02:58]} 3. Bb5 {[%clk 0:03:00]}  a6 {[%clk 0:02:58]} 4. Ba4 {[%clk 0:03:00]}  Nf6 {[%clk 0:02:57]} 5. O-O {[%clk 0:03:00]}  Nxe4 {[%clk 0:02:57]} 6. d4 {[%clk 0:02:59]}  b5 {[%clk 0:02:57]} 7. Bb3 {[%clk 0:03:00]}  d5 {[%clk 0:02:58]} 8. dxe5 {[%clk 0:02:56]}  Be6 {[%clk 0:02:58]} 9. c3 {[%clk 0:02:55]}  Bc5 {[%clk 0:02:56]} 10. Nbd2 {[%clk 0:02:53]}  O-O {[%clk 0:02:56]} 11. Bc2 {[%clk 0:02:50]}  Nxf2 {[%clk 0:02:55]} 12. Rxf2 {[%clk 0:02:49]}  f6 {[%clk 0:02:55]} 13. exf6 {[%clk 0:02:41]}  Bxf2+ {[%clk 0:02:55]} 14. Kxf2 {[%clk 0:02:41]}  Qxf6 {[%clk 0:02:56]} 15. Kg1 {[%clk 0:02:22]}  Bg4 {[%clk 0:02:32]} 16. h3 {[%clk 0:02:20]}  Bh5 {[%clk 0:02:31]} 17. Bb3 {[%clk 0:02:03]}  Rad8 {[%clk 0:02:27]} 18. Qe1 {[%clk 0:02:03]}  Na5 {[%clk 0:02:15]} 19. Qe5 {[%clk 0:01:47]}  Nc4 {[%clk 0:01:48]} 20. Qxh5 {[%clk 0:01:43]}  c6 {[%clk 0:01:43]} 21. Nxc4 {[%clk 0:01:39]}  bxc4 {[%clk 0:01:41]} 22. Bc2 {[%clk 0:01:39]}  g6 {[%clk 0:01:40]} 23. Qg5 {[%clk 0:01:29]}  Qe6 {[%clk 0:01:31]} 24. Be3 {[%clk 0:01:26]}  Rde8 {[%clk 0:01:26]} 25. Re1 {[%clk 0:01:19]}  Qd6 {[%clk 0:01:15]} 26. h4 {[%clk 0:01:05]}  Qf6 {[%clk 0:01:06]} 27. Qxf6 {[%clk 0:00:47]}  Rxf6 {[%clk 0:01:06]} 28. Bd4 {[%clk 0:00:40]}  Rxe1+ {[%clk 0:01:05]} 29. Nxe1 {[%clk 0:00:41]}  Rf4 {[%clk 0:01:05]} 30. Nf3 {[%clk 0:00:38]}  Rf7 {[%clk 0:00:56]} 31. Ne5 {[%clk 0:00:36]}  Rb7 {[%clk 0:00:55]} 32. b3 {[%clk 0:00:36]}  cxb3 {[%clk 0:00:54]} 33. axb3 {[%clk 0:00:36]}  Rc7 {[%clk 0:00:52]} 34. Bc5 {[%clk 0:00:34]}  Kg7 {[%clk 0:00:51]} 35. Bd3 {[%clk 0:00:33]}  Kf6 {[%clk 0:00:49]} 36. Nf3 {[%clk 0:00:25]}  a5 {[%clk 0:00:46]} 37. Nd4 {[%clk 0:00:19]}  Ke5 {[%clk 0:00:44]} 38. Kf2 {[%clk 0:00:19]}  Rf7+ {[%clk 0:00:43]} 39. Ke3 {[%clk 0:00:19]}  Rf6 {[%clk 0:00:30]} 40. g3 {[%clk 0:00:19]}  h6 {[%clk 0:00:30]} 41. Bb6 {[%clk 0:00:19]}  g5 {[%clk 0:00:28]} 42. Bc7+ {[%clk 0:00:18]} 1-0


[Site "https://www.chess.com"]

[Event "Titled Tuesday Blitz August 3 2021"]
[White "Nazaretyan, Tigran"]
[Black "Pajeken, Jakob Leon"]
[WhiteFideId "24162345"]
[BlackFideId "12942839"]
[WhiteElo "2214"]
[BlackElo "2231"]
[Result "1-0"]
[Round "09"]
[TimeControl "180+1"]
[Date "2021.08.03"]
[WhiteClock "0:01:02"]
[BlackClock "0:01:11"]

1. d4 {[%clk 0:02:57]}  d5 {[%clk 0:02:57]} 2. c4 {[%clk 0:02:57]}  dxc4 {[%clk 0:02:56]} 3. e3 {[%clk 0:02:53]}  Nf6 {[%clk 0:02:36]} 4. Bxc4 {[%clk 0:02:52]}  e6 {[%clk 0:02:36]} 5. Nf3 {[%clk 0:02:51]}  c5 {[%clk 0:02:36]} 6. O-O {[%clk 0:02:51]}  Nc6 {[%clk 0:02:36]} 7. Qe2 {[%clk 0:02:51]}  a6 {[%clk 0:02:36]} 8. a4 {[%clk 0:02:47]}  Qc7 {[%clk 0:02:34]} 9. Rd1 {[%clk 0:02:44]}  Be7 {[%clk 0:02:34]} 10. h3 {[%clk 0:02:39]}  O-O {[%clk 0:02:33]} 11. b3 {[%clk 0:02:39]}  cxd4 {[%clk 0:02:31]} 12. exd4 {[%clk 0:02:39]}  Na5 {[%clk 0:02:19]} 13. Nc3 {[%clk 0:02:30]}  Nxc4 {[%clk 0:02:14]} 14. bxc4 {[%clk 0:02:30]}  b6 {[%clk 0:02:13]} 15. Rb1 {[%clk 0:02:05]}  Bb7 {[%clk 0:02:08]} 16. Ne5 {[%clk 0:02:05]}  Bd6 {[%clk 0:02:00]} 17. Bf4 {[%clk 0:02:02]}  Rac8 {[%clk 0:01:53]} 18. a5 {[%clk 0:01:42]}  b5 {[%clk 0:01:48]} 19. c5 {[%clk 0:01:38]}  Bxe5 {[%clk 0:01:46]} 20. Bxe5 {[%clk 0:01:38]}  Qd8 {[%clk 0:01:46]} 21. Rd3 {[%clk 0:01:32]}  Nd5 {[%clk 0:01:42]} 22. Ne4 {[%clk 0:01:21]}  f6 {[%clk 0:01:36]} 23. Bd6 {[%clk 0:01:17]}  Rf7 {[%clk 0:01:34]} 24. Bh2 {[%clk 0:01:16]}  Rc6 {[%clk 0:01:16]} 25. Nd6 {[%clk 0:01:14]}  Rxd6 {[%clk 0:01:14]} 26. Bxd6 {[%clk 0:01:12]}  g5 {[%clk 0:01:14]} 27. Qxe6 {[%clk 0:01:11]}  Nf4 {[%clk 0:01:12]} 28. Bxf4 {[%clk 0:01:09]}  gxf4 {[%clk 0:01:13]} 29. d5 {[%clk 0:01:08]}  Kf8 {[%clk 0:01:12]} 30. c6 {[%clk 0:01:07]}  Bc8 {[%clk 0:01:12]} 31. Qe4 {[%clk 0:01:04]}  Rg7 {[%clk 0:01:11]} 32. Qxf4 {[%clk 0:01:02]} 1-0


[Site "https://www.chess.com"]

[Event "Titled Tuesday Blitz August 3 2021"]
[White "Omk124"]
[Black "El Arousy, Abdul Hameed"]
[BlackFideId "10600086"]
[WhiteElo "2532"]
[BlackElo "2216"]
[Result "1-0"]
[Round "09"]
[TimeControl "180+1"]
[Date "2021.08.03"]
[WhiteClock "0:00:06"]
[BlackClock "0:00:02"]

1. e4 {[%clk 0:03:00]}  e5 {[%clk 0:03:00]} 2. Nf3 {[%clk 0:03:00]}  Nc6 {[%clk 0:03:00]} 3. Bc4 {[%clk 0:03:00]}  Nf6 {[%clk 0:03:00]} 4. d3 {[%clk 0:03:01]}  Bc5 {[%clk 0:02:59]} 5. c3 {[%clk 0:03:01]}  d6 {[%clk 0:02:49]} 6. b4 {[%clk 0:03:01]}  Bb6 {[%clk 0:02:48]} 7. a4 {[%clk 0:03:02]}  a5 {[%clk 0:02:44]} 8. b5 {[%clk 0:03:02]}  Ne7 {[%clk 0:02:42]} 9. Nbd2 {[%clk 0:03:03]}  O-O {[%clk 0:02:39]} 10. Bb3 {[%clk 0:03:03]}  Ng6 {[%clk 0:02:39]} 11. Nc4 {[%clk 0:03:03]}  Bd7 {[%clk 0:02:30]} 12. O-O {[%clk 0:03:03]}  h6 {[%clk 0:02:23]} 13. h3 {[%clk 0:03:03]}  Qe7 {[%clk 0:02:10]} 14. Ba3 {[%clk 0:03:03]}  Bc5 {[%clk 0:01:57]} 15. Bxc5 {[%clk 0:02:54]}  dxc5 {[%clk 0:01:58]} 16. Qd2 {[%clk 0:02:53]}  Be6 {[%clk 0:01:57]} 17. Rad1 {[%clk 0:02:47]}  b6 {[%clk 0:01:57]} 18. Qc2 {[%clk 0:02:45]}  Rfd8 {[%clk 0:01:50]} 19. Rfe1 {[%clk 0:02:43]}  Nh5 {[%clk 0:01:45]} 20. d4 {[%clk 0:02:36]}  cxd4 {[%clk 0:01:40]} 21. cxd4 {[%clk 0:02:37]}  exd4 {[%clk 0:01:38]} 22. Nxd4 {[%clk 0:02:38]}  Bxc4 {[%clk 0:01:33]} 23. Qxc4 {[%clk 0:02:39]}  Ne5 {[%clk 0:01:30]} 24. Qc3 {[%clk 0:02:35]}  Qf6 {[%clk 0:01:26]} 25. Nf5 {[%clk 0:02:32]}  Nf4 {[%clk 0:01:23]} 26. Qe3 {[%clk 0:02:17]}  Nfd3 {[%clk 0:01:15]} 27. Rf1 {[%clk 0:02:09]}  Nc5 {[%clk 0:01:15]} 28. Bc2 {[%clk 0:02:01]}  Rxd1 {[%clk 0:01:02]} 29. Rxd1 {[%clk 0:02:00]}  Rd8 {[%clk 0:01:03]} 30. f4 {[%clk 0:01:59]}  Rxd1+ {[%clk 0:00:55]} 31. Bxd1 {[%clk 0:02:00]}  Nc4 {[%clk 0:00:55]} 32. Qe1 {[%clk 0:01:45]}  Nd6 {[%clk 0:00:45]} 33. Bc2 {[%clk 0:01:38]}  Nxf5 {[%clk 0:00:39]} 34. exf5 {[%clk 0:01:38]}  Qd4+ {[%clk 0:00:39]} 35. Kh1 {[%clk 0:01:38]}  f6 {[%clk 0:00:34]} 36. Bd1 {[%clk 0:00:48]}  Qxf4 {[%clk 0:00:26]} 37. Qe8+ {[%clk 0:00:46]}  Kh7 {[%clk 0:00:26]} 38. Qg6+ {[%clk 0:00:46]}  Kg8 {[%clk 0:00:27]} 39. Qe8+ {[%clk 0:00:39]}  Kh7 {[%clk 0:00:22]} 40. Bg4 {[%clk 0:00:34]}  Qe5 {[%clk 0:00:17]} 41. Qg6+ {[%clk 0:00:24]}  Kh8 {[%clk 0:00:15]} 42. Qf7 {[%clk 0:00:20]}  Qe1+ {[%clk 0:00:14]} 43. Kh2 {[%clk 0:00:20]}  Qe5+ {[%clk 0:00:12]} 44. g3 {[%clk 0:00:21]}  Qb2+ {[%clk 0:00:12]} 45. Kh1 {[%clk 0:00:21]}  Qc1+ {[%clk 0:00:12]} 46. Kg2 {[%clk 0:00:21]}  Qd2+ {[%clk 0:00:12]} 47. Kf1 {[%clk 0:00:21]}  Nd3 {[%clk 0:00:10]} 48. Be2 {[%clk 0:00:16]}  Qe3 {[%clk 0:00:10]} 49. Bxd3 {[%clk 0:00:05]}  Qxd3+ {[%clk 0:00:10]} 50. Kg1 {[%clk 0:00:05]}  Qd1+ {[%clk 0:00:08]} 51. Kg2 {[%clk 0:00:05]}  Qe2+ {[%clk 0:00:09]} 52. Kg1 {[%clk 0:00:06]}  Qe3+ {[%clk 0:00:08]} 53. Kg2 {[%clk 0:00:06]}  Qe4+ {[%clk 0:00:06]} 54. Kh2 {[%clk 0:00:06]}  Qe2+ {[%clk 0:00:06]} 55. Kg1 {[%clk 0:00:06]}  Qf3 {[%clk 0:00:04]} 56. Qe8+ {[%clk 0:00:05]}  Kh7 {[%clk 0:00:05]} 57. Qg6+ {[%clk 0:00:06]}  Kh8 {[%clk 0:00:05]} 58. h4 {[%clk 0:00:06]}  Qd1+ {[%clk 0:00:02]} 59. Kh2 {[%clk 0:00:07]}  Qd2+ {[%clk 0:00:03]} 60. Kh3 {[%clk 0:00:07]}  Qe1 {[%clk 0:00:03]} 61. Qe8+ {[%clk 0:00:07]}  Kh7 {[%clk 0:00:02]} 62. Qxe1 {[%clk 0:00:06]} 1-0


[Site "https://www.chess.com"]